[Event "GER-ch Blitz 2019"]
[Site "Magdeburg"]
[Date "2019.05.25"]
[Round "2.6"]
[White "Kirchner, Thomas"]
[Black "Hirneise, Jens"]
[Result "1/2-1/2"]
[ECO "B50"]
[WhiteElo "2311"]
[BlackElo "2375"]
[Annotator "NA"]
[PlyCount "111"]
[EventDate "2019.05.25"]
[EventType "tourn"]
[EventCountry "GER"]
[Tiebreak "Number of wins+Number of black wins"]
[SourceTitle "playchess.com"]
[Source "ChessBase"]
[SourceQuality "1"]
[TimeControl "180+2"]

1. e4 {[%emt 0:00:00]} c5 {[%emt 0:00:00]} 2. Nf3 {[%emt 0:00:00]} d6 {[%emt 0:
00:00]} 3. Bc4 {[%emt 0:00:02]} Nc6 {[%emt 0:00:03]} 4. c3 {[%emt 0:00:01]} Nf6
{[%emt 0:00:02]} 5. d3 {[%emt 0:00:01]} g6 {[%emt 0:00:01]} 6. O-O {[%emt 0:00:
01]} Bg7 {[%emt 0:00:01]} 7. Bb3 {[%emt 0:00:01]} O-O {[%emt 0:00:01]} 8. h3 {
[%emt 0:00:01]} a6 {[%emt 0:00:07]} 9. Re1 {[%emt 0:00:01]} e5 {[%emt 0:00:02]}
10. Nbd2 {[%emt 0:00:02]} h6 {[%emt 0:00:05]} 11. Nf1 {[%emt 0:00:01]} Be6 {
[%emt 0:00:05]} 12. Ng3 {[%emt 0:00:02]} Qd7 {[%emt 0:00:07]} 13. Bc2 {[%emt 0:
00:03]} b5 {[%emt 0:00:12]} 14. Be3 {[%emt 0:00:02]} b4 {[%emt 0:00:04]} 15. d4
{[%emt 0:00:05]} bxc3 {[%emt 0:00:03]} 16. bxc3 {[%emt 0:00:01]} cxd4 {[%emt 0:
00:17]} 17. cxd4 {[%emt 0:00:01]} exd4 {[%emt 0:00:02]} 18. Nxd4 {[%emt 0:00:
02]} Nxd4 {[%emt 0:00:13]} 19. Bxd4 {[%emt 0:00:01]} d5 {[%emt 0:00:41]} 20.
Ba4 {[%emt 0:00:11]} Qd8 {[%emt 0:00:24]} 21. Bc5 {[%emt 0:00:51]} Nxe4 {
[%emt 0:00:08]} 22. Nxe4 {[%emt 0:00:18]} dxe4 {[%emt 0:00:05]} 23. Bxf8 {
[%emt 0:00:07]} Bxa1 {[%emt 0:00:24]} 24. Qxa1 {[%emt 0:00:17]} Qxf8 {[%emt 0:
00:02]} 25. Rxe4 {[%emt 0:00:04]} Rb8 {[%emt 0:00:07]} 26. Re3 {[%emt 0:00:36]}
Qd6 {[%emt 0:00:08]} 27. Bb3 {[%emt 0:00:03]} Bxb3 {[%emt 0:00:04]} 28. axb3 {
[%emt 0:00:01]} Rd8 {[%emt 0:00:09]} 29. Re1 {[%emt 0:00:13]} Kh7 {[%emt 0:00:
08]} 30. Qc1 {[%emt 0:00:12]} Qd2 {[%emt 0:00:07]} 31. Qa1 {[%emt 0:00:05]} Qd6
{[%emt 0:00:04]} 32. Rb1 {[%emt 0:00:07]} Rb8 {[%emt 0:00:03]} 33. Qa4 {
[%emt 0:00:09]} Rb7 {[%emt 0:00:03]} 34. Qc4 {[%emt 0:00:02]} Ra7 {[%emt 0:00:
02]} 35. Rc1 {[%emt 0:00:04]} Re7 {[%emt 0:00:02]} 36. b4 Qf6 {[%emt 0:00:01]}
37. Rd1 {[%emt 0:00:07]} Kg7 {[%emt 0:00:01]} 38. g3 {[%emt 0:00:04]} Rb7 {
[%emt 0:00:02]} 39. h4 {[%emt 0:00:03]} h5 {[%emt 0:00:01]} 40. Rc1 {[%emt 0:
00:02]} Qb6 {[%emt 0:00:01]} 41. Qc3+ {[%emt 0:00:02]} Qf6 {[%emt 0:00:02]} 42.
Qd2 {[%emt 0:00:02]} Qb6 {[%emt 0:00:01]} 43. Rc4 {[%emt 0:00:03]} Qf6 {
[%emt 0:00:02]} 44. Rf4 {[%emt 0:00:01]} Qe5 {[%emt 0:00:03]} 45. Kh2 {[%emt 0:
00:02]} Rc7 {[%emt 0:00:03]} 46. Qd3 {[%emt 0:00:01]} Qe6 {[%emt 0:00:05]} 47.
Qd4+ {[%emt 0:00:02]} Kh7 {[%emt 0:00:03]} 48. Re4 {[%emt 0:00:02]} Qd7 {
[%emt 0:00:01]} 49. Qf6 {[%emt 0:00:01]} Rc6 {[%emt 0:00:01]} 50. Qf4 {[%emt 0:
00:02]} Qc7 {[%emt 0:00:01]} 51. Qf3 {[%emt 0:00:02]} Kg7 {[%emt 0:00:02]} 52.
Re8 {[%emt 0:00:02]} Rf6 {[%emt 0:00:02]} 53. Qe3 {[%emt 0:00:02]} Qb6 {
[%emt 0:00:02]} 54. Kg2 {[%emt 0:00:07]} Qxe3 {[%emt 0:00:01]} 55. Rxe3 {
[%emt 0:00:01]} Rb6 {[%emt 0:00:01]} 56. Re4 {[%emt 0:00:01]} 1/2-1/2

[Event "GER-ch Blitz 2019"]
[Site "Magdeburg"]
[Date "2019.05.25"]
[Round "2.7"]
[White "Stern, Rene"]
[Black "Kopylov, Michael"]
[Result "1-0"]
[ECO "A06"]
[WhiteElo "2538"]
[BlackElo "2413"]
[Annotator "RC"]
[PlyCount "83"]
[EventDate "2019.05.25"]
[EventType "tourn"]
[EventCountry "GER"]
[Tiebreak "Number of wins+Number of black wins"]
[SourceTitle "playchess.com"]
[Source "ChessBase"]
[SourceQuality "1"]
[TimeControl "180+2"]

1. Nf3 {[%emt 0:00:00]} d5 {[%emt 0:00:00]} 2. d4 {[%emt 0:00:02]} e6 {[%emt 0:
00:02]} 3. c4 {[%emt 0:00:02]} c6 {[%emt 0:00:02]} 4. e3 {[%emt 0:00:02]} Nf6 {
[%emt 0:00:02]} 5. Bd3 {[%emt 0:00:05]} Nbd7 {[%emt 0:00:02]} 6. Nbd2 {[%emt 0:
00:02]} Be7 {[%emt 0:00:06]} 7. O-O {[%emt 0:00:03]} O-O {[%emt 0:00:01]} 8. b3
{[%emt 0:00:01]} b6 {[%emt 0:00:02]} 9. Bb2 {[%emt 0:00:01]} Bb7 {[%emt 0:00:
01]} 10. Qe2 {[%emt 0:00:03]} c5 {[%emt 0:00:05]} 11. Rad1 {[%emt 0:00:08]}
cxd4 {[%emt 0:00:05]} 12. Nxd4 {[%emt 0:00:02]} Rc8 {[%emt 0:00:08]} 13. cxd5 {
[%emt 0:00:03]} Nxd5 {[%emt 0:00:07]} 14. Ba6 {[%emt 0:00:26]} Bxa6 {[%emt 0:
00:20]} 15. Qxa6 {[%emt 0:00:02]} Nc5 {[%emt 0:00:02]} 16. Qe2 {[%emt 0:00:11]}
Bf6 {[%emt 0:00:02]} 17. Nc4 {[%emt 0:00:11]} Qe7 {[%emt 0:00:07]} 18. e4 {
[%emt 0:00:15]} Nf4 {[%emt 0:00:41]} 19. Qe3 {[%emt 0:00:01]} Bxd4 {[%emt 0:00:
17]} 20. Bxd4 {[%emt 0:00:10]} Ng6 {[%emt 0:00:12]} 21. e5 {[%emt 0:00:17]}
Rcd8 {[%emt 0:00:32]} 22. g3 {[%emt 0:00:14]} Rd5 23. h4 {[%emt 0:00:19]} Qc7 {
[%emt 0:00:10]} 24. Nd6 {[%emt 0:00:12]} h6 {[%emt 0:00:07]} 25. Rc1 {[%emt 0:
00:07]} Qd7 {[%emt 0:00:26]} 26. h5 {[%emt 0:00:09]} Ne7 {[%emt 0:00:01]} 27.
Bxc5 {[%emt 0:00:01]} bxc5 {[%emt 0:00:01]} 28. Rxc5 {[%emt 0:00:01]} Rxc5 29.
Qxc5 {[%emt 0:00:02]} Nd5 {[%emt 0:00:07]} 30. Rc1 {[%emt 0:00:04]} Rb8 {
[%emt 0:00:05]} 31. Rc4 {[%emt 0:00:24]} Qe7 {[%emt 0:00:02]} 32. Qd4 {[%emt 0:
00:04]} Qg5 {[%emt 0:00:02]} 33. Qd1 {[%emt 0:00:05]} Qxe5 {[%emt 0:00:03]} 34.
Ne4 {[%emt 0:00:05]} Qf5 {[%emt 0:00:04]} 35. Kg2 {[%emt 0:00:04]} a5 {[%emt 0:
00:02]} 36. Qf3 {[%emt 0:00:01]} Qe5 {[%emt 0:00:02]} 37. Qd3 {[%emt 0:00:05]}
Qxh5 {[%emt 0:00:03]} 38. Qc2 {[%emt 0:00:01]} Qe5 39. Rc8+ Rxc8 40. Qxc8+ Kh7
41. Qc2 f5 42. Nc5 1-0

[Event "GER-ch Blitz 2019"]
[Site "Magdeburg"]
[Date "2019.05.25"]
[Round "2.8"]
[White "Ehmann, Thilo"]
[Black "Schulz, Karsten"]
[Result "1-0"]
[ECO "B06"]
[WhiteElo "2291"]
[BlackElo "2227"]
[Annotator "NA"]
[PlyCount "137"]
[EventDate "2019.05.25"]
[EventType "tourn"]
[EventCountry "GER"]
[Tiebreak "Number of wins+Number of black wins"]
[SourceTitle "playchess.com"]
[Source "ChessBase"]
[SourceQuality "1"]
[TimeControl "180+2"]

1. e4 {[%emt 0:00:00]} g6 {[%emt 0:00:00]} 2. d4 {[%emt 0:00:02]} Bg7 {[%emt 0:
00:02]} 3. Nf3 {[%emt 0:00:02]} d6 {[%emt 0:00:02]} 4. Bd3 {[%emt 0:00:02]} Nf6
{[%emt 0:00:02]} 5. O-O {[%emt 0:00:02]} O-O {[%emt 0:00:02]} 6. c3 {[%emt 0:
00:13]} Nc6 {[%emt 0:00:02]} 7. h3 {[%emt 0:00:02]} e5 {[%emt 0:00:02]} 8. Re1
{[%emt 0:00:08]} Nh5 {[%emt 0:00:05]} 9. Bc2 {[%emt 0:00:01]} h6 {[%emt 0:00:
05]} 10. Nbd2 {[%emt 0:00:06]} exd4 {[%emt 0:00:06]} 11. cxd4 {[%emt 0:00:01]}
Nxd4 {[%emt 0:00:02]} 12. Nxd4 {[%emt 0:00:00]} Bxd4 {[%emt 0:00:02]} 13. Nf3 {
[%emt 0:00:26]} Bg7 {[%emt 0:00:02]} 14. Be3 {[%emt 0:00:08]} a6 {[%emt 0:00:
05]} 15. Qd2 {[%emt 0:00:01]} Kh7 {[%emt 0:00:03]} 16. Nd4 {[%emt 0:00:02]} Bd7
{[%emt 0:00:12]} 17. f4 {[%emt 0:00:04]} Qe7 {[%emt 0:00:09]} 18. Rad1 {
[%emt 0:00:16]} Rad8 {[%emt 0:00:12]} 19. g4 {[%emt 0:00:22]} Nf6 {[%emt 0:00:
08]} 20. Bf2 {[%emt 0:00:05]} c5 {[%emt 0:00:03]} 21. Nf3 {[%emt 0:00:12]} Bc6
{[%emt 0:00:05]} 22. Qe2 {[%emt 0:00:18]} Rfe8 {[%emt 0:00:08]} 23. Bh4 {
[%emt 0:00:13]} Qc7 {[%emt 0:00:36]} 24. Nd2 {[%emt 0:00:22]} Rc8 {[%emt 0:00:
14]} 25. Qf1 {[%emt 0:00:06]} b5 {[%emt 0:00:17]} 26. b3 {[%emt 0:00:02]} Qb7 {
[%emt 0:00:07]} 27. e5 {[%emt 0:00:02]} Nd5 {[%emt 0:00:07]} 28. Ne4 {[%emt 0:
00:09]} dxe5 {[%emt 0:00:06]} 29. Nd6 {[%emt 0:00:00]} Qa7 {[%emt 0:00:07]} 30.
Nxe8 {[%emt 0:00:05]} Rxe8 {[%emt 0:00:03]} 31. Be4 {[%emt 0:00:10]} Qb7 {
[%emt 0:00:09]} 32. f5 {[%emt 0:00:02]} Nf4 {[%emt 0:00:03]} 33. Bxc6 Qxc6 {
[%emt 0:00:01]} 34. Bg3 {[%emt 0:00:02]} Nd5 {[%emt 0:00:11]} 35. Qg2 {[%emt 0:
00:01]} Nb4 {[%emt 0:00:05]} 36. Qxc6 {[%emt 0:00:01]} Nxc6 {[%emt 0:00:01]}
37. Rc1 {[%emt 0:00:00]} Nd4 {[%emt 0:00:01]} 38. Rxc5 {[%emt 0:00:02]} Nf3+ {
[%emt 0:00:01]} 39. Kf2 {[%emt 0:00:00]} Nxe1 40. Kxe1 gxf5 {[%emt 0:00:04]}
41. gxf5 {[%emt 0:00:01]} e4 {[%emt 0:00:02]} 42. Rc6 {[%emt 0:00:03]} a5 {
[%emt 0:00:05]} 43. Rc5 {[%emt 0:00:02]} a4 {[%emt 0:00:02]} 44. Rxb5 {[%emt 0:
00:01]} axb3 {[%emt 0:00:01]} 45. axb3 {[%emt 0:00:01]} Bf6 {[%emt 0:00:03]}
46. Bf4 {[%emt 0:00:02]} Rc8 {[%emt 0:00:03]} 47. Rb6 {[%emt 0:00:02]} Kg7 {
[%emt 0:00:06]} 48. Kd2 {[%emt 0:00:03]} Rd8+ {[%emt 0:00:02]} 49. Ke3 {
[%emt 0:00:01]} Rd3+ {[%emt 0:00:02]} 50. Kxe4 {[%emt 0:00:01]} Rxh3 {[%emt 0:
00:02]} 51. b4 {[%emt 0:00:01]} Rb3 {[%emt 0:00:03]} 52. Bxh6+ {[%emt 0:00:02]}
Kxh6 {[%emt 0:00:02]} 53. Rxf6+ {[%emt 0:00:01]} Kg5 {[%emt 0:00:02]} 54. Rb6 {
[%emt 0:00:01]} f6 {[%emt 0:00:02]} 55. Rb5 {[%emt 0:00:01]} Rb1 {[%emt 0:00:
01]} 56. Kd4 {[%emt 0:00:02]} Kf4 {[%emt 0:00:01]} 57. Kc3 {[%emt 0:00:04]} Ke4
{[%emt 0:00:03]} 58. Rc5 {[%emt 0:00:01]} Rc1+ {[%emt 0:00:02]} 59. Kb3 {
[%emt 0:00:02]} Rb1+ {[%emt 0:00:02]} 60. Ka4 {[%emt 0:00:01]} Ra1+ {[%emt 0:
00:02]} 61. Kb5 {[%emt 0:00:01]} Rb1 {[%emt 0:00:01]} 62. Ka5 {[%emt 0:00:01]}
Ra1+ {[%emt 0:00:01]} 63. Kb6 {[%emt 0:00:00]} Rb1 {[%emt 0:00:01]} 64. b5 {
[%emt 0:00:01]} Rb2 {[%emt 0:00:03]} 65. Kc6 {[%emt 0:00:02]} Ra2 {[%emt 0:00:
05]} 66. b6 {[%emt 0:00:00]} Rb2 {[%emt 0:00:02]} 67. b7 {[%emt 0:00:03]} Kd4 {
[%emt 0:00:03]} 68. Rb5 {[%emt 0:00:01]} Rc2+ {[%emt 0:00:01]} 69. Kd7 {
[%emt 0:00:01] Kd5} 1-0

[Event "GER-ch Blitz 2019"]
[Site "Magdeburg"]
[Date "2019.05.25"]
[Round "2.9"]
[White "Carow, Johannes"]
[Black "Braeuer, Franz"]
[Result "1-0"]
[ECO "A06"]
[WhiteElo "2445"]
[BlackElo "2445"]
[Annotator "ChessBase"]
[PlyCount "141"]
[EventDate "2019.05.25"]
[EventType "tourn"]
[EventCountry "GER"]
[Tiebreak "Number of wins+Number of black wins"]
[SourceTitle "playchess.com"]
[Source "ChessBase"]
[SourceQuality "1"]
[TimeControl "180+2"]

1. Nf3 {[%emt 0:00:00]} d5 {[%emt 0:00:00]} 2. e3 {[%emt 0:00:01]} Nf6 {
[%emt 0:00:04]} 3. c4 {[%emt 0:00:01]} e6 {[%emt 0:00:01]} 4. Nc3 {[%emt 0:00:
01]} c6 {[%emt 0:00:03]} 5. b3 {[%emt 0:00:02]} Nbd7 {[%emt 0:00:01]} 6. Bb2 {
[%emt 0:00:00]} Bd6 {[%emt 0:00:01]} 7. Qc2 {[%emt 0:00:03]} a6 {[%emt 0:00:18]
} 8. d4 {[%emt 0:00:08]} O-O {[%emt 0:00:10]} 9. Bd3 {[%emt 0:00:04]} b5 {
[%emt 0:00:06]} 10. O-O {[%emt 0:00:03]} Bb7 {[%emt 0:00:15]} 11. e4 {[%emt 0:
00:32]} dxe4 {[%emt 0:00:12]} 12. Nxe4 {[%emt 0:00:01]} Nxe4 {[%emt 0:00:01]}
13. Bxe4 {[%emt 0:00:02]} Nf6 {[%emt 0:00:04]} 14. c5 {[%emt 0:00:30]} Nxe4 {
[%emt 0:00:12]} 15. Qxe4 {[%emt 0:00:02]} Be7 {[%emt 0:00:01]} 16. Rfe1 {
[%emt 0:00:07]} Bf6 {[%emt 0:00:07]} 17. Ne5 {[%emt 0:00:15]} Qd5 {[%emt 0:00:
27]} 18. Qxd5 {[%emt 0:00:06]} exd5 {[%emt 0:00:02]} 19. Nd7 {[%emt 0:00:01]}
Rfe8 {[%emt 0:00:01]} 20. Nxf6+ {[%emt 0:00:09]} gxf6 {[%emt 0:00:01]} 21. Bc3
{[%emt 0:00:04]} Re6 {[%emt 0:00:05]} 22. Rxe6 {[%emt 0:00:27]} fxe6 {[%emt 0:
00:01]} 23. Re1 {[%emt 0:00:01]} Kf7 {[%emt 0:00:02]} 24. Ba5 {[%emt 0:00:04]}
Rg8 {[%emt 0:00:13]} 25. f3 {[%emt 0:00:04]} Bc8 {[%emt 0:00:13]} 26. Kf2 {
[%emt 0:00:03]} Bd7 {[%emt 0:00:01]} 27. Re3 {[%emt 0:00:02]} Re8 {[%emt 0:00:
08]} 28. Bc7 {[%emt 0:00:13]} Rc8 {[%emt 0:00:01]} 29. Bb6 {[%emt 0:00:01]} Re8
{[%emt 0:00:01]} 30. f4 {[%emt 0:00:09]} Rc8 {[%emt 0:00:37]} 31. b4 {[%emt 0:
00:03]} Ke7 {[%emt 0:00:19]} 32. f5 {[%emt 0:00:08]} Kf7 {[%emt 0:00:02]} 33.
fxe6+ {[%emt 0:00:13]} Bxe6 {[%emt 0:00:00]} 34. Ra3 {[%emt 0:00:01]} Ra8 {
[%emt 0:00:01]} 35. Bc7 {[%emt 0:00:02]} Bf5 {[%emt 0:00:04]} 36. Rf3 {[%emt 0:
00:07]} Be4 {[%emt 0:00:02]} 37. Rf4 {[%emt 0:00:01]} Ke6 {[%emt 0:00:02]} 38.
Rh4 {[%emt 0:00:05]} Ra7 {[%emt 0:00:02]} 39. Bd8 {[%emt 0:00:04]} Rd7 {
[%emt 0:00:01]} 40. Bb6 {[%emt 0:00:04]} Rg7 {[%emt 0:00:01]} 41. g3 {[%emt 0:
00:02]} Rd7 {[%emt 0:00:06]} 42. Rh6 {[%emt 0:00:03]} Kf5 {[%emt 0:00:03]} 43.
Rh4 {[%emt 0:00:04]} Ke6 {[%emt 0:00:01]} 44. h3 {[%emt 0:00:03]} Rg7 {[%emt 0:
00:03]} 45. g4 {[%emt 0:00:04]} Rd7 {[%emt 0:00:06]} 46. Rh6 {[%emt 0:00:03]}
Kf7 {[%emt 0:00:01]} 47. h4 {[%emt 0:00:06]} Kg7 48. g5 Rf7 {[%emt 0:00:05]}
49. Ke2 {[%emt 0:00:03]} Bg6 {[%emt 0:00:02]} 50. Bd8 {[%emt 0:00:02]} fxg5 {
[%emt 0:00:00]} 51. hxg5 {[%emt 0:00:01]} Rf4 {[%emt 0:00:03]} 52. Rh3 {
[%emt 0:00:04]} Re4+ {[%emt 0:00:01]} 53. Kf2 {[%emt 0:00:01]} Kf7 {[%emt 0:00:
01]} 54. Bf6 {[%emt 0:00:02]} Rf4+ {[%emt 0:00:01]} 55. Ke2 {[%emt 0:00:01]}
Re4+ {[%emt 0:00:00]} 56. Kd2 {[%emt 0:00:01]} Rg4 {[%emt 0:00:02]} 57. Ra3 {
[%emt 0:00:01]} Rg2+ {[%emt 0:00:01]} 58. Ke1 {[%emt 0:00:02]} h6 {[%emt 0:00:
11]} 59. Rxa6 hxg5 {[%emt 0:00:01]} 60. Be5 {[%emt 0:00:04]} Bd3 {[%emt 0:00:
01]} 61. Rxc6 {[%emt 0:00:03]} Rxa2 {[%emt 0:00:01]} 62. Rf6+ {[%emt 0:00:05]}
Ke7 {[%emt 0:00:01]} 63. Rd6 {[%emt 0:00:01]} Be4 {[%emt 0:00:03]} 64. Rb6 {
[%emt 0:00:02]} Bd3 {[%emt 0:00:01]} 65. c6 {[%emt 0:00:01]} Rc2 {[%emt 0:00:
01]} 66. c7 {[%emt 0:00:00]} g4 {[%emt 0:00:05]} 67. Rb8 {[%emt 0:00:03]} Bf5 {
[%emt 0:00:01]} 68. Rxb5 {[%emt 0:00:03]} Be6 {[%emt 0:00:04]} 69. Rb6 Kd7 {
[%emt 0:00:05]} 70. Rb7 {[%emt 0:00:03]} Rc4 {[%emt 0:00:03]} 71. b5 {[%emt 0:
00:02]} 1-0

[Event "GER-ch Blitz 2019"]
[Site "Magdeburg"]
[Date "2019.05.25"]
[Round "2.11"]
[White "Krause, Benedict"]
[Black "Baskin, Robert"]
[Result "1-0"]
[ECO "B94"]
[WhiteElo "2434"]
[BlackElo "2398"]
[Annotator "NA"]
[PlyCount "65"]
[EventDate "2019.05.25"]
[EventType "tourn"]
[EventCountry "GER"]
[Tiebreak "Number of wins+Number of black wins"]
[SourceTitle "playchess.com"]
[Source "ChessBase"]
[SourceQuality "1"]
[TimeControl "180+2"]

1. e4 {[%emt 0:00:00]} c5 {[%emt 0:00:02]} 2. Nf3 {[%emt 0:00:02]} d6 {[%emt 0:
00:01]} 3. d4 {[%emt 0:00:01]} cxd4 {[%emt 0:00:01]} 4. Nxd4 {[%emt 0:00:00]}
Nf6 {[%emt 0:00:02]} 5. Nc3 {[%emt 0:00:01]} a6 {[%emt 0:00:01]} 6. Bg5 {
[%emt 0:00:01]} Nbd7 {[%emt 0:00:02]} 7. Qe2 {[%emt 0:00:01]} h6 {[%emt 0:00:
03]} 8. Bh4 {[%emt 0:00:02]} g6 {[%emt 0:00:01]} 9. f4 {[%emt 0:00:00]} e5 {
[%emt 0:00:01]} 10. fxe5 {[%emt 0:00:02]} dxe5 {[%emt 0:00:01]} 11. O-O-O {
[%emt 0:00:02]} Qc7 {[%emt 0:00:01]} 12. Nb3 {[%emt 0:00:01]} b5 {[%emt 0:00:
02]} 13. Rxd7 {[%emt 0:00:02]} Nxd7 {[%emt 0:00:02]} 14. Nd5 {[%emt 0:00:01]}
Qb8 {[%emt 0:00:27]} 15. Qf3 {[%emt 0:00:27]} Bb7 {[%emt 0:00:16]} 16. Na5 {
[%emt 0:00:50]} Bxd5 {[%emt 0:00:07]} 17. exd5 {[%emt 0:00:01]} Bd6 {[%emt 0:
00:04]} 18. Nc6 {[%emt 0:00:05]} Qc7 {[%emt 0:00:07]} 19. Bd3 {[%emt 0:00:25]}
Nc5 {[%emt 0:00:29]} 20. Bf6 {[%emt 0:00:04]} Nxd3+ {[%emt 0:00:17]} 21. Qxd3 {
[%emt 0:00:02]} O-O {[%emt 0:00:05]} 22. Qh3 {[%emt 0:00:06]} e4 {[%emt 0:00:
09]} 23. Rf1 {[%emt 0:00:35]} h5 {[%emt 0:00:18]} 24. g4 {[%emt 0:00:03]} Qd7 {
[%emt 0:00:01]} 25. Rf5 {[%emt 0:00:12]} Qxf5 {[%emt 0:00:57]} 26. gxf5 {
[%emt 0:00:01]} Bf4+ {[%emt 0:00:01]} 27. Kd1 {[%emt 0:00:02]} e3 {[%emt 0:00:
02]} 28. fxg6 {[%emt 0:00:06]} fxg6 {[%emt 0:00:01]} 29. Qe6+ {[%emt 0:00:01]}
Rf7 {[%emt 0:00:04]} 30. Nd8 {[%emt 0:00:01]} Rxd8 {[%emt 0:00:03]} 31. Bxd8 {
[%emt 0:00:01]} Kg7 {[%emt 0:00:03]} 32. Bb6 {[%emt 0:00:02]} Bxh2 {[%emt 0:00:
03]} 33. Bd4+ {[%emt 0:00:01]} 1-0

[Event "GER-ch Blitz 2019"]
[Site "Magdeburg"]
[Date "2019.05.25"]
[Round "2.13"]
[White "Barzen, Pascal"]
[Black "Wichmann, Cliff"]
[Result "0-1"]
[ECO "C02"]
[WhiteElo "2292"]
[BlackElo "2280"]
[Annotator "NA"]
[PlyCount "76"]
[EventDate "2019.05.25"]
[EventType "tourn"]
[EventCountry "GER"]
[Tiebreak "Number of wins+Number of black wins"]
[SourceTitle "playchess.com"]
[Source "ChessBase"]
[SourceQuality "1"]
[TimeControl "180+2"]

1. e4 {[%emt 0:00:00]} e6 {[%emt 0:00:00]} 2. d4 {[%emt 0:00:02]} d5 {[%emt 0:
00:02]} 3. e5 {[%emt 0:00:02]} c5 {[%emt 0:00:01]} 4. c3 {[%emt 0:00:01]} Bd7 {
[%emt 0:00:01]} 5. Nf3 {[%emt 0:00:00]} Nc6 6. a3 f6 {[%emt 0:00:02]} 7. b4 {
[%emt 0:00:04]} fxe5 8. dxe5 {[%emt 0:00:01]} Qc7 {[%emt 0:00:17]} 9. Bf4 {
[%emt 0:00:01]} O-O-O {[%emt 0:00:08]} 10. h4 {[%emt 0:00:07]} Nh6 {[%emt 0:00:
04]} 11. Nbd2 {[%emt 0:00:05]} Nf7 {[%emt 0:00:02]} 12. Qe2 {[%emt 0:00:11]} g6
{[%emt 0:00:02]} 13. b5 {[%emt 0:00:09]} Na5 {[%emt 0:00:06]} 14. a4 {[%emt 0:
00:01]} Bg7 {[%emt 0:00:12]} 15. g3 {[%emt 0:00:00]} h6 {[%emt 0:00:08]} 16.
Bg2 {[%emt 0:00:04]} Rdf8 {[%emt 0:00:06]} 17. O-O {[%emt 0:00:11]} g5 {
[%emt 0:00:01]} 18. hxg5 {[%emt 0:00:01]} hxg5 {[%emt 0:00:01]} 19. Nxg5 {
[%emt 0:00:01]} Nxg5 {[%emt 0:00:05]} 20. Bxg5 {[%emt 0:00:01]} Bxe5 {[%emt 0:
00:12]} 21. Rac1 {[%emt 0:00:07]} Kb8 {[%emt 0:00:20]} 22. Rfe1 {[%emt 0:00:05]
} Bd6 {[%emt 0:00:02]} 23. c4 {[%emt 0:00:13]} Rhg8 {[%emt 0:00:09]} 24. Bh4 {
[%emt 0:00:20]} Rf5 {[%emt 0:00:19]} 25. Qd3 {[%emt 0:00:32]} Rgf8 {[%emt 0:00:
03]} 26. Re2 {[%emt 0:00:10]} Be5 {[%emt 0:00:18]} 27. cxd5 {[%emt 0:00:09]}
exd5 {[%emt 0:00:03]} 28. Be7 {[%emt 0:00:32]} c4 {[%emt 0:00:14]} 29. Qxd5 {
[%emt 0:00:28]} Bxg3 {[%emt 0:00:04]} 30. Qd4 {[%emt 0:00:08]} Rxf2 {[%emt 0:
00:10]} 31. Rce1 {[%emt 0:00:10]} R2f4 {[%emt 0:00:06]} 32. Bd6 {[%emt 0:00:03]
} Rxd4 {[%emt 0:00:01]} 33. Bxc7+ {[%emt 0:00:00]} Bxc7 {[%emt 0:00:01]} 34.
Rf1 {[%emt 0:00:01]} Rxf1+ {[%emt 0:00:02]} 35. Nxf1 {[%emt 0:00:02]} Bb6 {
[%emt 0:00:01]} 36. Kh1 {[%emt 0:00:01]} c3 {[%emt 0:00:02]} 37. Be4 {[%emt 0:
00:02]} Bg4 {[%emt 0:00:04]} 38. Re3 {[%emt 0:00:02]} Rxe4 {[%emt 0:00:02]} 0-1

[Event "GER-ch Blitz 2019"]
[Site "Magdeburg"]
[Date "2019.05.25"]
[Round "2.14"]
[White "Feuerstack, Aljoscha"]
[Black "Heistermann, Till"]
[Result "1/2-1/2"]
[ECO "B00"]
[WhiteElo "2441"]
[BlackElo "2181"]
[Annotator "NA"]
[PlyCount "70"]
[EventDate "2019.05.25"]
[EventType "tourn"]
[EventCountry "GER"]
[Tiebreak "Number of wins+Number of black wins"]
[SourceTitle "playchess.com"]
[Source "ChessBase"]
[SourceQuality "1"]
[TimeControl "180+2"]

1. e4 {[%emt 0:00:00]} d6 {[%emt 0:00:00]} 2. d4 {[%emt 0:00:00]} e5 {[%emt 0:
00:00]} 3. c3 {[%emt 0:00:03]} Nf6 {[%emt 0:00:00]} 4. Bd3 {[%emt 0:00:00]} Be7
{[%emt 0:00:01]} 5. Nf3 {[%emt 0:00:01]} Nbd7 {[%emt 0:00:01]} 6. O-O {[%emt 0:
00:02]} O-O {[%emt 0:00:02]} 7. h3 {[%emt 0:00:01]} c6 {[%emt 0:00:00]} 8. Re1
{[%emt 0:00:02]} Re8 {[%emt 0:00:02]} 9. Na3 {[%emt 0:00:04]} Qc7 {[%emt 0:00:
01]} 10. Nc2 {[%emt 0:00:01]} Nf8 {[%emt 0:00:01]} 11. b4 {[%emt 0:00:05]} Ng6
{[%emt 0:00:02]} 12. a4 {[%emt 0:00:01]} a5 {[%emt 0:00:05]} 13. Bd2 $11 {
[%emt 0:00:15]} h6 {[%emt 0:00:01]} 14. Nh2 {[%emt 0:00:59]} Be6 {[%emt 0:00:
07]} 15. Ng4 {[%emt 0:00:05]} Qc8 {[%emt 0:00:16]} 16. Nce3 {[%emt 0:00:11]}
Nxg4 {[%emt 0:00:04]} 17. hxg4 {[%emt 0:00:02]} Bg5 {[%emt 0:00:01]} 18. Nf5 {
[%emt 0:00:04]} Qd8 {[%emt 0:00:02]} 19. Bxg5 {[%emt 0:00:04]} hxg5 {[%emt 0:
00:02]} 20. g3 {[%emt 0:00:15]} axb4 {[%emt 0:00:01]} 21. cxb4 exd4 {[%emt 0:
00:00]} 22. Nxd4 {[%emt 0:00:05]} Qf6 {[%emt 0:00:02]} 23. Nf5 {[%emt 0:00:09]}
Bxf5 {[%emt 0:00:05]} 24. gxf5 {[%emt 0:00:03]} Ne5 {[%emt 0:00:00]} 25. Be2 {
[%emt 0:00:05]} Rad8 {[%emt 0:00:09]} 26. f4 {[%emt 0:00:16]} Nd7 {[%emt 0:00:
07]} 27. Bg4 {[%emt 0:00:17]} Nf8 {[%emt 0:00:10]} 28. Qf3 {[%emt 0:00:03]}
Qd4+ {[%emt 0:00:04]} 29. Kg2 {[%emt 0:00:01]} Qxb4 {[%emt 0:00:02]} 30. Rab1 {
[%emt 0:00:05]} Qxa4 {[%emt 0:00:05]} 31. Rxb7 {[%emt 0:00:02]} Qc2+ {[%emt 0:
00:03]} 32. Re2 {[%emt 0:00:01]} Qc4 {[%emt 0:00:04]} 33. fxg5 Rb8 34. Reb2 {
[%emt 0:00:20]} Rxb7 {[%emt 0:00:03]} 35. Rxb7 {[%emt 0:00:01]} Qc2+ {[%emt 0:
00:07] Rb8} 1/2-1/2